[Event "Gibraltar Masters 18th"]
[Site "Gibraltar"]
[Date "2020.01.26"]
[Round "6.18"]
[White "Studer, Noel"]
[Black "Chigaev, Maksim"]
[Result "1-0"]
[ECO "D85"]
[WhiteElo "2546"]
[BlackElo "2616"]
[PlyCount "77"]
[EventDate "2020.01.21"]
[EventType "swiss"]
[EventRounds "10"]
[EventCountry "GGB"]
[SourceTitle "BritBase"]
[Source "John Saunders"]
[SourceDate "2021.06.05"]
[SourceVersion "1"]
[SourceVersionDate "2021.06.05"]
[SourceQuality "1"]
[TimeControl "40/100:0"]
[WhiteClock "0:04:10"]
[BlackClock "0:24:24"]

1. d4 {[%emt 0:00:00]} Nf6 {[%emt 0:00:00]} 2. c4 {[%emt 0:00:00]} g6 {[%emt 0:
00:00]} 3. Nc3 {[%emt 0:00:00]} d5 {[%emt 0:00:00]} 4. cxd5 {[%emt 0:00:00]}
Nxd5 {[%emt 0:00:00]} 5. e4 {[%emt 0:00:00]} Nxc3 {[%emt 0:00:00]} 6. bxc3 {
[%emt 0:00:00]} Bg7 {[%emt 0:00:00]} 7. Qa4+ {[%emt 0:00:00]} Nd7 {[%emt 0:00:
00]} 8. Nf3 {[%emt 0:00:00]} O-O {[%emt 0:00:00]} 9. Be2 {[%emt 0:00:00]} Nb6 {
[%emt 0:00:00]} 10. Qb4 {[%emt 0:00:00]} Qd6 {[%emt 0:00:00]} 11. O-O {[%emt 0:
00:00]} Qxb4 {[%emt 0:00:00]} 12. cxb4 {[%emt 0:00:00]} Bg4 {[%emt 0:00:00]}
13. Be3 {[%emt 0:00:00]} Rfd8 {[%emt 0:00:00]} 14. Rfd1 {[%emt 0:00:00]} c6 {
[%emt 0:00:00]} 15. a4 {[%emt 0:00:00]} a5 {[%emt 0:00:00]} 16. b5 {[%emt 0:00:
00]} c5 {[%emt 0:00:00]} 17. dxc5 {[%emt 0:00:00]} Rxd1+ {[%emt 0:00:00]} 18.
Rxd1 {[%emt 0:00:00]} Nxa4 {[%emt 0:00:00]} 19. Rc1 {[%emt 0:00:00]} Nc3 {
[%emt 0:00:00]} 20. Bc4 {[%emt 0:00:00]} Be6 {[%emt 0:00:00]} 21. Bxe6 {
[%emt 0:00:00]} fxe6 {[%emt 0:00:00]} 22. Kf1 {[%emt 0:00:00]} Nxb5 {[%emt 0:
00:00]} 23. Rb1 {[%emt 0:00:00]} Na7 {[%emt 0:00:00]} 24. Rxb7 {[%emt 0:00:00]}
a4 {[%emt 0:00:00]} 25. Bc1 {[%emt 0:00:00]} Nc6 {[%emt 0:00:00]} 26. Ba3 {
[%emt 0:00:00]} Na5 {[%emt 0:00:00]} 27. Rb4 {[%emt 0:00:00]} Nc6 {[%emt 0:00:
00]} 28. Rb6 {[%emt 0:00:00]} Na5 {[%emt 0:00:00]} 29. Rb4 {[%emt 0:00:00]} Nc6
{[%emt 0:00:00]} 30. Rb6 {[%emt 0:00:00]} Na5 {[%emt 0:00:00]} 31. c6 {[%emt 0:
00:00]} Rc8 {[%emt 0:00:00]} 32. Rb4 {[%emt 0:00:00]} Nxc6 {[%emt 0:00:00]} 33.
Rxa4 {[%emt 0:00:00]} h6 {[%emt 0:00:00]} 34. Rc4 {[%emt 0:00:00]} Kf7 {
[%emt 0:00:00]} 35. Ne1 {[%emt 0:00:00]} Ra8 {[%emt 0:00:00]} 36. Bc1 {[%emt 0:
00:00]} Nd4 {[%emt 0:00:00]} 37. Bxh6 {[%emt 0:00:00]} Nb3 {[%emt 0:00:00]} 38.
Be3 {[%emt 0:00:00]} Ra2 {[%emt 0:00:00]} 39. Nf3 {[%emt 0:00:00]} 1-0

[Event "Gibraltar Masters 18th"]
[Site "Gibraltar"]
[Date "2020.01.26"]
[Round "6.19"]
[White "Krysa, Leandro"]
[Black "Yilmaz, Mustafa"]
[Result "1/2-1/2"]
[ECO "A37"]
[WhiteElo "2522"]
[BlackElo "2607"]
[PlyCount "63"]
[EventDate "2020.01.21"]
[EventType "swiss"]
[EventRounds "10"]
[EventCountry "GGB"]
[SourceTitle "BritBase"]
[Source "John Saunders"]
[SourceDate "2021.06.05"]
[SourceVersion "1"]
[SourceVersionDate "2021.06.05"]
[SourceQuality "1"]
[TimeControl "40/100:0"]
[WhiteClock "0:36:44"]
[BlackClock "0:16:08"]

1. c4 {[%emt 0:00:00]} c5 {[%emt 0:00:00]} 2. g3 {[%emt 0:00:00]} g6 {[%emt 0:
00:00]} 3. Bg2 {[%emt 0:00:00]} Bg7 {[%emt 0:00:00]} 4. Nc3 {[%emt 0:00:00]}
Nc6 {[%emt 0:00:00]} 5. Nf3 {[%emt 0:00:00]} d6 {[%emt 0:00:00]} 6. O-O {
[%emt 0:00:00]} e6 {[%emt 0:00:00]} 7. b3 {[%emt 0:00:00]} Nge7 {[%emt 0:00:00]
} 8. Bb2 {[%emt 0:00:00]} O-O {[%emt 0:00:00]} 9. e3 {[%emt 0:00:00]} d5 {
[%emt 0:00:00]} 10. cxd5 {[%emt 0:00:00]} Nxd5 {[%emt 0:00:00]} 11. d4 {
[%emt 0:00:00]} Nxc3 {[%emt 0:00:00]} 12. Bxc3 {[%emt 0:00:00]} cxd4 {[%emt 0:
00:00]} 13. Nxd4 {[%emt 0:00:00]} Nxd4 {[%emt 0:00:00]} 14. Bxd4 {[%emt 0:00:
00]} Bxd4 {[%emt 0:00:00]} 15. Qxd4 {[%emt 0:00:00]} Qxd4 {[%emt 0:00:00]} 16.
exd4 {[%emt 0:00:00]} Rd8 {[%emt 0:00:00]} 17. Rfd1 {[%emt 0:00:00]} Rb8 {
[%emt 0:00:00]} 18. Rac1 {[%emt 0:00:00]} b6 {[%emt 0:00:00]} 19. d5 {[%emt 0:
00:00]} exd5 {[%emt 0:00:00]} 20. Bxd5 {[%emt 0:00:00]} Kf8 {[%emt 0:00:00]}
21. h4 {[%emt 0:00:00]} h5 {[%emt 0:00:00]} 22. Bf3 {[%emt 0:00:00]} Be6 {
[%emt 0:00:00]} 23. Kf1 {[%emt 0:00:00]} a5 {[%emt 0:00:00]} 24. Rxd8+ {
[%emt 0:00:00]} Rxd8 {[%emt 0:00:00]} 25. Ke2 {[%emt 0:00:00]} a4 {[%emt 0:00:
00]} 26. bxa4 {[%emt 0:00:00]} Bxa2 {[%emt 0:00:00]} 27. Rc6 {[%emt 0:00:00]}
Bb3 {[%emt 0:00:00]} 28. Rxb6 {[%emt 0:00:00]} Bxa4 {[%emt 0:00:00]} 29. Ke3 {
[%emt 0:00:00]} Ke7 {[%emt 0:00:00]} 30. Rb7+ {[%emt 0:00:00]} Rd7 {[%emt 0:00:
00]} 31. Rxd7+ {[%emt 0:00:00]} Bxd7 {[%emt 0:00:00]} 32. Ke4 {[%emt 0:00:09]}
1/2-1/2

[Event "Gibraltar Masters 18th"]
[Site "Gibraltar"]
[Date "2020.01.26"]
[Round "6.20"]
[White "Karthikeyan, Murali"]
[Black "Chen, Qi B"]
[Result "1-0"]
[ECO "C67"]
[WhiteElo "2606"]
[BlackElo "2432"]
[PlyCount "99"]
[EventDate "2020.01.21"]
[EventType "swiss"]
[EventRounds "10"]
[EventCountry "GGB"]
[SourceTitle "BritBase"]
[Source "John Saunders"]
[SourceDate "2021.06.05"]
[SourceVersion "1"]
[SourceVersionDate "2021.06.05"]
[SourceQuality "1"]
[TimeControl "40/100:0"]
[WhiteClock "0:06:21"]
[BlackClock "0:03:00"]

1. e4 {[%emt 0:00:00]} e5 {[%emt 0:00:00]} 2. Nf3 {[%emt 0:00:00]} Nc6 {
[%emt 0:00:00]} 3. Bb5 {[%emt 0:00:00]} Nf6 {[%emt 0:00:00]} 4. O-O {[%emt 0:
00:00]} Nxe4 {[%emt 0:00:00]} 5. d4 {[%emt 0:00:00]} Nd6 {[%emt 0:00:00]} 6.
Bxc6 {[%emt 0:00:00]} dxc6 {[%emt 0:00:00]} 7. dxe5 {[%emt 0:00:00]} Nf5 {
[%emt 0:00:00]} 8. Qxd8+ {[%emt 0:00:00]} Kxd8 {[%emt 0:00:00]} 9. Nc3 {
[%emt 0:00:00]} Ke8 {[%emt 0:00:00]} 10. h3 {[%emt 0:00:00]} Be7 {[%emt 0:00:
00]} 11. Bg5 {[%emt 0:00:00]} Bxg5 {[%emt 0:00:00]} 12. Nxg5 {[%emt 0:00:00]}
h6 {[%emt 0:00:00]} 13. Nf3 {[%emt 0:00:00]} h5 {[%emt 0:00:00]} 14. Rad1 {
[%emt 0:00:00]} Be6 {[%emt 0:00:00]} 15. Ne2 {[%emt 0:00:00]} Bc4 {[%emt 0:00:
00]} 16. Rfe1 {[%emt 0:00:00]} Bxe2 {[%emt 0:00:00]} 17. Rxe2 {[%emt 0:00:00]}
Rd8 {[%emt 0:00:00]} 18. Rxd8+ {[%emt 0:00:00]} Kxd8 {[%emt 0:00:00]} 19. Re4 {
[%emt 0:00:00]} Ke7 {[%emt 0:00:00]} 20. Rb4 {[%emt 0:00:00]} Rb8 {[%emt 0:00:
00]} 21. g4 {[%emt 0:00:00]} hxg4 {[%emt 0:00:00]} 22. hxg4 {[%emt 0:00:00]}
Nh6 {[%emt 0:00:00]} 23. Kg2 {[%emt 0:00:00]} a5 {[%emt 0:00:00]} 24. Ra4 {
[%emt 0:00:00]} Ra8 {[%emt 0:00:00]} 25. Kg3 {[%emt 0:00:00]} c5 {[%emt 0:00:
00]} 26. c3 {[%emt 0:00:00]} b5 {[%emt 0:00:00]} 27. Rf4 {[%emt 0:00:00]} Rd8 {
[%emt 0:00:00]} 28. g5 {[%emt 0:00:00]} Ng8 {[%emt 0:00:00]} 29. g6 {[%emt 0:
00:00]} fxg6 {[%emt 0:00:00]} 30. Rg4 {[%emt 0:00:00]} Kf7 {[%emt 0:00:00]} 31.
Ng5+ {[%emt 0:00:00]} Ke8 {[%emt 0:00:00]} 32. Ne6 {[%emt 0:00:00]} Rd2 {
[%emt 0:00:00]} 33. Nxc7+ {[%emt 0:00:00]} Kd7 {[%emt 0:00:00]} 34. Rxg6 {
[%emt 0:00:00]} Kxc7 {[%emt 0:00:00]} 35. Rxg7+ {[%emt 0:00:00]} Kc6 {[%emt 0:
00:00]} 36. Rxg8 {[%emt 0:00:00]} Rxb2 {[%emt 0:00:00]} 37. f4 {[%emt 0:00:00]}
Rxa2 {[%emt 0:00:00]} 38. f5 {[%emt 0:00:00]} Re2 {[%emt 0:00:00]} 39. f6 {
[%emt 0:00:00]} Rxe5 {[%emt 0:00:00]} 40. f7 {[%emt 0:00:00]} Rf5 {[%emt 0:00:
00]} 41. f8=Q {[%emt 0:00:00]} Rxf8 {[%emt 0:00:00]} 42. Rxf8 {[%emt 0:00:00]}
Kd5 {[%emt 0:00:00]} 43. Rf4 {[%emt 0:00:00]} b4 {[%emt 0:02:09]} 44. Kf3 {
[%emt 0:00:00]} b3 {[%emt 0:00:00]} 45. c4+ {[%emt 0:00:00]} Ke5 {[%emt 0:00:
00]} 46. Ke3 {[%emt 0:00:00]} b2 {[%emt 0:00:00]} 47. Rf1 {[%emt 0:00:00]} a4 {
[%emt 0:00:00]} 48. Kd3 {[%emt 0:00:00]} a3 {[%emt 0:00:00]} 49. Re1+ {[%emt 0:
00:00]} Kf4 {[%emt 0:00:00]} 50. Kc2 {[%emt 0:00:00]} 1-0

[Event "Gibraltar Masters 18th"]
[Site "Gibraltar"]
[Date "2020.01.26"]
[Round "6.21"]
[White "Kozak, Adam"]
[Black "Basso, Pier Luigi"]
[Result "0-1"]
[ECO "D45"]
[WhiteElo "2523"]
[BlackElo "2600"]
[PlyCount "90"]
[EventDate "2020.01.21"]
[EventType "swiss"]
[EventRounds "10"]
[EventCountry "GGB"]
[SourceTitle "BritBase"]
[Source "John Saunders"]
[SourceDate "2021.06.05"]
[SourceVersion "1"]
[SourceVersionDate "2021.06.05"]
[SourceQuality "1"]
[TimeControl "40/100:0"]
[WhiteClock "0:42:47"]
[BlackClock "1:07:17"]

1. d4 {[%emt 0:00:00]} d5 {[%emt 0:00:00]} 2. c4 {[%emt 0:00:00]} c6 {[%emt 0:
00:00]} 3. Nc3 {[%emt 0:00:00]} Nf6 {[%emt 0:00:00]} 4. Nf3 {[%emt 0:00:00]} e6
{[%emt 0:00:00]} 5. e3 {[%emt 0:00:00]} Nbd7 {[%emt 0:00:00]} 6. Qc2 {[%emt 0:
00:00]} b6 {[%emt 0:00:00]} 7. Bd3 {[%emt 0:00:00]} Bb7 {[%emt 0:00:00]} 8. O-O
{[%emt 0:00:00]} Be7 {[%emt 0:00:00]} 9. b3 {[%emt 0:00:00]} dxc4 {[%emt 0:00:
00]} 10. bxc4 {[%emt 0:00:00]} c5 {[%emt 0:00:00]} 11. d5 {[%emt 0:00:00]} exd5
{[%emt 0:00:00]} 12. cxd5 {[%emt 0:00:00]} Nxd5 {[%emt 0:00:00]} 13. Nxd5 {
[%emt 0:00:00]} Bxd5 {[%emt 0:00:00]} 14. Bb2 {[%emt 0:00:00]} Bxf3 {[%emt 0:
00:00]} 15. gxf3 {[%emt 0:00:00]} Bf6 {[%emt 0:00:00]} 16. Bxf6 {[%emt 0:00:00]
} Nxf6 {[%emt 0:00:00]} 17. Rad1 {[%emt 0:00:00]} Qe7 {[%emt 0:00:00]} 18. Qa4+
{[%emt 0:00:00]} Kf8 {[%emt 0:00:00]} 19. Qh4 {[%emt 0:00:00]} h6 {[%emt 0:00:
00]} 20. f4 {[%emt 0:00:00]} g6 {[%emt 0:00:00]} 21. e4 {[%emt 0:00:00]} Nh5 {
[%emt 0:00:00]} 22. Qg4 {[%emt 0:00:00]} Rd8 {[%emt 0:00:00]} 23. Bc2 {[%emt 0:
00:00]} Kg7 {[%emt 0:00:00]} 24. e5 {[%emt 0:00:00]} Rxd1 {[%emt 0:00:00]} 25.
Rxd1 {[%emt 0:00:00]} Rd8 {[%emt 0:00:00]} 26. Rxd8 {[%emt 0:00:00]} Qxd8 {
[%emt 0:00:00]} 27. f5 {[%emt 0:00:00]} Qg5 {[%emt 0:00:00]} 28. Qxg5 {[%emt 0:
00:00]} hxg5 {[%emt 0:00:00]} 29. f6+ {[%emt 0:00:00]} Kf8 {[%emt 0:00:00]} 30.
Bd3 {[%emt 0:00:00]} Nf4 {[%emt 0:00:00]} 31. Bc4 {[%emt 0:00:00]} g4 {[%emt 0:
00:00]} 32. f3 {[%emt 0:00:00]} g5 {[%emt 0:00:00]} 33. fxg4 {[%emt 0:00:00]}
Ng6 {[%emt 0:00:00]} 34. e6 {[%emt 0:00:00]} fxe6 {[%emt 0:00:00]} 35. Bxe6 {
[%emt 0:00:00]} b5 {[%emt 0:00:00]} 36. Kf2 {[%emt 0:00:00]} Nf4 {[%emt 0:00:
00]} 37. Bd7 {[%emt 0:00:00]} b4 {[%emt 0:00:00]} 38. h4 {[%emt 0:00:00]} gxh4
{[%emt 0:00:00]} 39. g5 {[%emt 0:00:00]} Kf7 {[%emt 0:00:00]} 40. Kf3 {[%emt 0:
01:08]} Ne6 {[%emt 0:00:00]} 41. Ke4 {[%emt 0:00:00]} h3 {[%emt 0:00:00]} 42.
Ke5 {[%emt 0:00:00]} Nxg5 {[%emt 0:00:00]} 43. Bxh3 {[%emt 0:00:00]} Nxh3 {
[%emt 0:00:00]} 44. Kd5 {[%emt 0:00:00]} Kxf6 {[%emt 0:00:00]} 45. Kxc5 {
[%emt 0:00:00]} Ke5 {[%emt 0:00:00]} 0-1

[Event "Gibraltar Masters 18th"]
[Site "Gibraltar"]
[Date "2020.01.26"]
[Round "6.22"]
[White "Can, Emre"]
[Black "Haug, Johannes"]
[Result "1/2-1/2"]
[ECO "D38"]
[WhiteElo "2600"]
[BlackElo "2407"]
[PlyCount "135"]
[EventDate "2020.01.21"]
[EventType "swiss"]
[EventRounds "10"]
[EventCountry "GGB"]
[SourceTitle "BritBase"]
[Source "John Saunders"]
[SourceDate "2021.06.05"]
[SourceVersion "1"]
[SourceVersionDate "2021.06.05"]
[SourceQuality "1"]
[TimeControl "40/100:0"]
[WhiteClock "0:29:50"]
[BlackClock "0:15:22"]

1. d4 {[%emt 0:00:00]} Nf6 {[%emt 0:00:00]} 2. c4 {[%emt 0:00:00]} e6 {[%emt 0:
00:00]} 3. Nf3 {[%emt 0:00:00]} d5 {[%emt 0:00:00]} 4. Nc3 {[%emt 0:00:00]} Bb4
{[%emt 0:00:00]} 5. Qb3 {[%emt 0:00:00]} c5 {[%emt 0:00:00]} 6. dxc5 {[%emt 0:
00:00]} Na6 {[%emt 0:00:00]} 7. a3 {[%emt 0:00:00]} Bxc3+ {[%emt 0:00:00]} 8.
Qxc3 {[%emt 0:00:00]} Nxc5 {[%emt 0:00:00]} 9. cxd5 {[%emt 0:00:00]} Qxd5 {
[%emt 0:00:00]} 10. Be3 {[%emt 0:00:00]} Nce4 {[%emt 0:00:00]} 11. Qe5 {
[%emt 0:00:00]} Qxe5 {[%emt 0:00:00]} 12. Nxe5 {[%emt 0:00:00]} Nd5 {[%emt 0:
00:00]} 13. Bc1 {[%emt 0:00:00]} Nc5 {[%emt 0:00:00]} 14. Rb1 {[%emt 0:00:00]}
Bd7 {[%emt 0:00:00]} 15. f3 {[%emt 0:00:00]} Nb3 {[%emt 0:00:00]} 16. e4 {
[%emt 0:00:00]} Nb6 {[%emt 0:00:00]} 17. Be3 {[%emt 0:00:00]} Rc8 {[%emt 0:00:
00]} 18. g4 {[%emt 0:00:00]} Ba4 {[%emt 0:00:00]} 19. g5 {[%emt 0:00:00]} Ke7 {
[%emt 0:00:00]} 20. Rg1 {[%emt 0:00:00]} Rhd8 {[%emt 0:00:00]} 21. Rg2 {
[%emt 0:00:00]} Nd4 {[%emt 0:00:00]} 22. Kf2 {[%emt 0:00:00]} Bb3 {[%emt 0:00:
00]} 23. Rc1 {[%emt 0:00:00]} Rxc1 {[%emt 0:00:00]} 24. Bxc1 {[%emt 0:00:00]}
Rc8 {[%emt 0:00:00]} 25. Be3 {[%emt 0:00:00]} Nc2 {[%emt 0:00:00]} 26. Bxb6 {
[%emt 0:00:00]} axb6 {[%emt 0:00:00]} 27. Rg3 {[%emt 0:00:00]} Nd4 {[%emt 0:00:
00]} 28. Rh3 {[%emt 0:00:00]} Rc2+ {[%emt 0:00:00]} 29. Ke3 {[%emt 0:00:00]}
Nc6 {[%emt 0:00:00]} 30. Nd3 {[%emt 0:00:00]} Bc4 {[%emt 0:00:00]} 31. Rxh7 {
[%emt 0:00:00]} Bxd3 {[%emt 0:00:00]} 32. Bxd3 {[%emt 0:00:00]} Rxb2 {[%emt 0:
00:00]} 33. Rxg7 {[%emt 0:00:00]} Rxh2 {[%emt 0:00:00]} 34. g6 {[%emt 0:00:00]}
Ne5 {[%emt 0:01:01]} 35. Rh7 {[%emt 0:00:00]} Rg2 {[%emt 0:00:04]} 36. gxf7 {
[%emt 0:00:00]} Nxf7 {[%emt 0:00:00]} 37. e5 {[%emt 0:00:00]} Kf8 {[%emt 0:00:
00]} 38. f4 {[%emt 0:00:00]} Kg8 {[%emt 0:00:00]} 39. Kf3 {[%emt 0:00:00]} Ra2
{[%emt 0:00:00]} 40. Bg6 {[%emt 0:00:00]} Nh8 {[%emt 0:00:00]} 41. Bb1 {
[%emt 0:00:00]} Rxa3+ {[%emt 0:00:00]} 42. Kg4 {[%emt 0:00:00]} Rb3 {[%emt 0:
00:00]} 43. Rh1 {[%emt 0:00:00]} Kg7 {[%emt 0:00:00]} 44. Ba2 {[%emt 0:00:00]}
Rb4 {[%emt 0:00:00]} 45. Rc1 {[%emt 0:00:00]} Ng6 {[%emt 0:00:00]} 46. Kg5 {
[%emt 0:00:00]} Nxf4 {[%emt 0:00:00]} 47. Rc7+ {[%emt 0:00:00]} Kf8 {[%emt 0:
00:00]} 48. Kf6 {[%emt 0:00:00]} Ke8 {[%emt 0:00:00]} 49. Bxe6 {[%emt 0:00:00]}
Nxe6 {[%emt 0:00:00]} 50. Kxe6 {[%emt 0:00:00]} Kd8 {[%emt 0:00:00]} 51. Rd7+ {
[%emt 0:00:00]} Kc8 {[%emt 0:00:00]} 52. Ke7 {[%emt 0:00:00]} Rh4 {[%emt 0:00:
00]} 53. Rd1 {[%emt 0:00:00]} b5 {[%emt 0:00:00]} 54. e6 {[%emt 0:00:00]} Kc7 {
[%emt 0:00:00]} 55. Kf6 {[%emt 0:00:00]} Re4 {[%emt 0:00:00]} 56. e7 {[%emt 0:
00:00]} Kc6 {[%emt 0:00:00]} 57. Rd8 {[%emt 0:00:00]} b4 {[%emt 0:00:00]} 58.
e8=Q+ {[%emt 0:00:00]} Rxe8 {[%emt 0:00:00]} 59. Rxe8 {[%emt 0:00:00]} Kd5 {
[%emt 0:00:00]} 60. Rb8 {[%emt 0:00:00]} b3 {[%emt 0:00:32]} 61. Rxb7 {[%emt 0:
00:00]} Kc4 {[%emt 0:00:00]} 62. Ke5 {[%emt 0:00:00]} Kc3 {[%emt 0:00:00]} 63.
Ke4 {[%emt 0:00:00]} b2 {[%emt 0:00:12]} 64. Ke3 {[%emt 0:00:00]} Kc2 {[%emt 0:
00:18]} 65. Rc7+ {[%emt 0:00:00]} Kd1 {[%emt 0:00:00]} 66. Rb7 {[%emt 0:00:00]}
Kc2 {[%emt 0:00:00]} 67. Rxb2+ {[%emt 0:00:00]} Kxb2 {[%emt 0:00:00]} 68. Ke4 {
[%emt 0:00:13]} 1/2-1/2

[Event "Gibraltar Masters 18th"]
[Site "Gibraltar"]
[Date "2020.01.26"]
[Round "6.23"]
[White "Khotenashvili, Bela"]
[Black "Moussard, Jules"]
[Result "1-0"]
[ECO "A80"]
[WhiteElo "2446"]
[BlackElo "2600"]
[PlyCount "77"]
[EventDate "2020.01.21"]
[EventType "swiss"]
[EventRounds "10"]
[EventCountry "GGB"]
[SourceTitle "BritBase"]
[Source "John Saunders"]
[SourceDate "2021.06.05"]
[SourceVersion "1"]
[SourceVersionDate "2021.06.05"]
[SourceQuality "1"]
[TimeControl "40/100:0"]
[WhiteClock "0:01:20"]
[BlackClock "0:47:16"]

1. d4 {[%emt 0:00:00]} f5 {[%emt 0:02:56]} 2. Bg5 {[%emt 0:00:00]} h6 {[%emt 0:
00:00]} 3. Bh4 {[%emt 0:00:00]} g5 {[%emt 0:00:00]} 4. e3 {[%emt 0:00:00]} Nf6
{[%emt 0:00:00]} 5. Bg3 {[%emt 0:00:00]} d6 {[%emt 0:00:00]} 6. Nc3 {[%emt 0:
00:00]} Bg7 {[%emt 0:00:00]} 7. h4 {[%emt 0:00:00]} g4 {[%emt 0:00:00]} 8. h5 {
[%emt 0:00:00]} Be6 {[%emt 0:00:00]} 9. Nge2 {[%emt 0:00:00]} Bf7 {[%emt 0:00:
00]} 10. Nf4 {[%emt 0:00:00]} Nc6 {[%emt 0:00:00]} 11. d5 {[%emt 0:00:00]} Ne5
{[%emt 0:00:00]} 12. Ne6 {[%emt 0:00:00]} Bxe6 {[%emt 0:00:00]} 13. dxe6 {
[%emt 0:00:00]} c6 {[%emt 0:00:00]} 14. Bxe5 {[%emt 0:00:00]} dxe5 {[%emt 0:00:
00]} 15. Qxd8+ {[%emt 0:00:00]} Rxd8 {[%emt 0:00:00]} 16. e4 {[%emt 0:00:00]}
f4 {[%emt 0:00:00]} 17. Be2 {[%emt 0:00:00]} Rg8 {[%emt 0:00:00]} 18. a4 {
[%emt 0:00:00]} Rd6 {[%emt 0:00:00]} 19. a5 {[%emt 0:00:00]} Kd8 {[%emt 0:00:
00]} 20. Bd3 {[%emt 0:00:00]} Ne8 {[%emt 0:00:00]} 21. Na4 {[%emt 0:00:00]} Nc7
{[%emt 0:00:00]} 22. Nc5 {[%emt 0:00:00]} Kc8 {[%emt 0:00:00]} 23. Ra3 {
[%emt 0:00:00]} Rf8 {[%emt 0:00:00]} 24. Rh4 {[%emt 0:00:52]} Nxe6 {[%emt 0:00:
00]} 25. Nxe6 {[%emt 0:00:00]} Rxe6 {[%emt 0:00:00]} 26. Rxg4 {[%emt 0:00:00]}
Bh8 {[%emt 0:00:00]} 27. Bc4 {[%emt 0:00:00]} Rd6 {[%emt 0:00:00]} 28. Rd3 {
[%emt 0:00:00]} Rxd3 {[%emt 0:00:00]} 29. Bxd3 {[%emt 0:00:00]} Bf6 {[%emt 0:
00:00]} 30. Rg6 {[%emt 0:00:00]} Bg5 {[%emt 0:00:00]} 31. Ke2 {[%emt 0:00:00]}
f3+ {[%emt 0:00:00]} 32. gxf3 {[%emt 0:00:00]} Kc7 {[%emt 0:00:00]} 33. Bc4 {
[%emt 0:00:00]} Rd8 {[%emt 0:00:00]} 34. Bd3 {[%emt 0:00:00]} Rf8 {[%emt 0:00:
00]} 35. Bc4 {[%emt 0:00:00]} Rd8 {[%emt 0:00:00]} 36. Kf1 {[%emt 0:00:00]} Rd2
{[%emt 0:00:00]} 37. Rxg5 {[%emt 0:00:39]} hxg5 {[%emt 0:00:00]} 38. Bd3 {
[%emt 0:00:00]} c5 {[%emt 0:00:00]} 39. Ke1 {[%emt 0:00:00]} 1-0

[Event "Gibraltar Masters 18th"]
[Site "Gibraltar"]
[Date "2020.01.26"]
[Round "6.24"]
[White "Vaibhav, Suri"]
[Black "Buksa, Nataliya"]
[Result "1/2-1/2"]
[ECO "B31"]
[WhiteElo "2593"]
[BlackElo "2403"]
[PlyCount "53"]
[EventDate "2020.01.21"]
[EventType "swiss"]
[EventRounds "10"]
[EventCountry "GGB"]
[SourceTitle "BritBase"]
[Source "John Saunders"]
[SourceDate "2021.06.05"]
[SourceVersion "1"]
[SourceVersionDate "2021.06.05"]
[SourceQuality "1"]
[TimeControl "40/100:0"]
[WhiteClock "0:12:23"]
[BlackClock "0:41:10"]

1. e4 {[%emt 0:00:00]} c5 {[%emt 0:00:00]} 2. Nf3 {[%emt 0:00:00]} Nc6 {
[%emt 0:00:00]} 3. Bb5 {[%emt 0:00:00]} g6 {[%emt 0:00:00]} 4. Bxc6 {[%emt 0:
00:00]} dxc6 {[%emt 0:00:00]} 5. d3 {[%emt 0:00:00]} Bg7 {[%emt 0:00:00]} 6. h3
{[%emt 0:00:00]} Nf6 {[%emt 0:00:00]} 7. Nc3 {[%emt 0:00:00]} Nd7 {[%emt 0:00:
00]} 8. Be3 {[%emt 0:00:00]} e5 {[%emt 0:00:00]} 9. Qc1 {[%emt 0:00:00]} h6 {
[%emt 0:00:00]} 10. O-O {[%emt 0:00:00]} b6 {[%emt 0:00:00]} 11. a3 {[%emt 0:
00:00]} Nf8 {[%emt 0:00:00]} 12. b4 {[%emt 0:00:00]} Ne6 {[%emt 0:00:00]} 13.
bxc5 {[%emt 0:00:00]} bxc5 {[%emt 0:00:00]} 14. Na4 {[%emt 0:00:00]} Qa5 {
[%emt 0:00:00]} 15. Nb2 {[%emt 0:00:00]} Ba6 {[%emt 0:00:00]} 16. Nd2 {[%emt 0:
00:00]} Nd4 {[%emt 0:00:00]} 17. Re1 {[%emt 0:00:00]} Rb8 {[%emt 0:00:00]} 18.
Nbc4 {[%emt 0:00:00]} Qc7 {[%emt 0:00:00]} 19. c3 {[%emt 0:00:00]} Ne6 {
[%emt 0:00:00]} 20. Qc2 {[%emt 0:00:00]} O-O {[%emt 0:00:00]} 21. Nb3 {[%emt 0:
00:00]} Qe7 {[%emt 0:00:00]} 22. Rab1 {[%emt 0:00:00]} Rbd8 {[%emt 0:00:00]}
23. Nba5 {[%emt 0:00:00]} Qc7 {[%emt 0:00:00]} 24. Nb3 {[%emt 0:00:00]} Qe7 {
[%emt 0:00:00]} 25. Nba5 {[%emt 0:00:00]} Qc7 {[%emt 0:00:00]} 26. Nb3 {
[%emt 0:00:00]} Qe7 {[%emt 0:00:00]} 27. Ra1 {[%emt 0:00:51]} 1/2-1/2

[Event "Gibraltar Masters 18th"]
[Site "Gibraltar"]
[Date "2020.01.26"]
[Round "6.25"]
[White "Plotkin, Victor"]
[Black "Kadric, Denis"]
[Result "1/2-1/2"]
[ECO "B06"]
[WhiteElo "2267"]
[BlackElo "2585"]
[PlyCount "84"]
[EventDate "2020.01.21"]
[EventType "swiss"]
[EventRounds "10"]
[EventCountry "GGB"]
[SourceTitle "BritBase"]
[Source "John Saunders"]
[SourceDate "2021.06.05"]
[SourceVersion "1"]
[SourceVersionDate "2021.06.05"]
[SourceQuality "1"]
[TimeControl "40/100:0"]
[WhiteClock "0:40:38"]
[BlackClock "0:46:22"]

1. e4 {[%emt 0:00:00]} d6 {[%emt 0:00:00]} 2. d4 {[%emt 0:00:00]} g6 {[%emt 0:
00:00]} 3. Nc3 {[%emt 0:00:00]} a6 {[%emt 0:00:00]} 4. a4 {[%emt 0:00:00]} Bg7
{[%emt 0:00:00]} 5. Be3 {[%emt 0:00:00]} b6 {[%emt 0:00:00]} 6. Bc4 {[%emt 0:
00:00]} e6 {[%emt 0:00:00]} 7. h4 {[%emt 0:00:00]} h5 {[%emt 0:00:00]} 8. Qd2 {
[%emt 0:00:00]} Nd7 {[%emt 0:00:00]} 9. Nf3 {[%emt 0:00:00]} Bb7 {[%emt 0:00:
00]} 10. Ng5 {[%emt 0:00:00]} Qe7 {[%emt 0:00:00]} 11. O-O-O {[%emt 0:00:00]}
Ngf6 {[%emt 0:00:00]} 12. f3 {[%emt 0:00:00]} b5 {[%emt 0:00:00]} 13. axb5 {
[%emt 0:00:00]} axb5 {[%emt 0:00:00]} 14. Bxb5 {[%emt 0:00:00]} Ra1+ {[%emt 0:
00:00]} 15. Nb1 {[%emt 0:00:00]} O-O {[%emt 0:00:00]} 16. Qe2 {[%emt 0:00:00]}
c6 {[%emt 0:00:00]} 17. Bd3 {[%emt 0:00:00]} c5 {[%emt 0:00:00]} 18. Bb5 {
[%emt 0:00:00]} Rc8 {[%emt 0:00:00]} 19. Rd3 {[%emt 0:00:00]} cxd4 {[%emt 0:00:
00]} 20. Bxd4 {[%emt 0:00:00]} Nc5 {[%emt 0:00:00]} 21. Bxc5 {[%emt 0:00:00]}
Rxc5 {[%emt 0:00:00]} 22. Ra3 {[%emt 0:00:00]} Rxa3 {[%emt 0:00:00]} 23. Nxa3 {
[%emt 0:00:00]} Nd7 {[%emt 0:00:00]} 24. Qd2 {[%emt 0:00:00]} Nf8 {[%emt 0:00:
00]} 25. Rd1 {[%emt 0:00:00]} d5 {[%emt 0:00:00]} 26. Qb4 {[%emt 0:00:00]} Bf6
{[%emt 0:00:00]} 27. exd5 {[%emt 0:00:00]} Bxd5 {[%emt 0:00:00]} 28. Kb1 {
[%emt 0:00:00]} Bxg5 {[%emt 0:00:00]} 29. hxg5 {[%emt 0:00:00]} Qxg5 {[%emt 0:
00:00]} 30. Qd2 {[%emt 0:00:00]} Bb7 {[%emt 0:00:00]} 31. Qxg5 {[%emt 0:00:00]}
Rxg5 {[%emt 0:00:00]} 32. Rd2 {[%emt 0:00:00]} e5 {[%emt 0:00:00]} 33. b4 {
[%emt 0:00:00]} h4 {[%emt 0:00:00]} 34. Kb2 {[%emt 0:00:00]} Ne6 {[%emt 0:00:
00]} 35. Bf1 {[%emt 0:00:00]} h3 {[%emt 0:00:00]} 36. gxh3 {[%emt 0:00:00]}
Bxf3 {[%emt 0:00:00]} 37. c4 {[%emt 0:00:00]} Rg1 {[%emt 0:00:29]} 38. Rf2 {
[%emt 0:00:00]} Ba8 {[%emt 0:00:36]} 39. c5 {[%emt 0:00:00]} e4 {[%emt 0:00:00]
} 40. Nc2 {[%emt 0:00:00]} Rg3 {[%emt 0:00:00]} 41. Bc4 {[%emt 0:01:35]} Rxh3 {
[%emt 0:00:00]} 42. Rd2 {[%emt 0:00:00]} Kg7 {[%emt 0:32:54]} 1/2-1/2